[Event "Turkish Cup 2022"]
[Site "Sakarya"]
[Date "2022.03.25"]
[Round "1.3"]
[White "Ersoy, Emre"]
[Black "Gunduz, Umut Erdem"]
[Result "0-1"]
[ECO "C95"]
[WhiteElo "1516"]
[BlackElo "2258"]
[Annotator "NA"]
[PlyCount "74"]
[EventDate "2022.03.25"]
[EventType "swiss"]
[EventCountry "TUR"]
[SourceTitle "playchess.com"]
[Source "ChessBase"]
[SourceQuality "1"]
[TimeControl "5400+30"]

1. e4 {[%emt 0:01:00]} e5 {[%emt 0:01:00]} 2. Nf3 {[%emt 0:00:30]} Nc6 {[%emt 0:00:30]} 3. Bb5 {[%emt 0:00:00]} a6 {[%emt 0:00:30]} 4. Ba4 {[%emt 0:00:00]} Nf6 {[%emt 0:00:30]} 5. O-O {[%emt 0:00:30]} Be7 {[%emt 0:00:30]} 6. Re1 {[%emt 0:00:30]} b5 {[%emt 0:00:00]} 7. Bb3 {[%emt 0:00:00]} O-O {[%emt 0:00:00]} 8. c3 {[%emt 0:00:00]} d6 {[%emt 0:01:30]} 9. h3 {[%emt 0:00:00]} Nb8 {[%emt 0:00:30]} 10. d4 {[%emt 0:00:00]} Nbd7 {[%emt 0:00:00]} 11. Nbd2 {[%emt 0:00:30]} Bb7 {[%emt 0:00:00]} 12. Bc2 {[%emt 0:00:30]} Re8 {[%emt 0:00:30]} 13. Nf1 {[%emt 0:00:30]} Bf8 {[%emt 0:00:00]} 14. Ng3 {[%emt 0:03:30]} g6 {[%emt 0:00:00]} 15. Bd2 {[%emt 0:09:30]} Bg7 {[%emt 0:20:30]} 16. Qc1 {[%emt 0:03:30]} Qe7 {[%emt 0:14:30]} 17. Bh6 {[%emt 0:04:30]} Qf8 {[%emt 0:00:30]} 18. Bxg7 {[%emt 0:01:30]} Qxg7 {[%emt 0:00:30]} 19. a4 {[%emt 0:01:30]} c6 {[%emt 0:17:30]} 20. b4 {[%emt 0:03:30]} d5 $16 {[%emt 0:21:32]} 21. dxe5 {[%emt 0:17:30]} Nxe5 {[%emt 0:03:38]} 22. Qf4 {[%emt 0:14:30]} Nxf3+ {[%emt 0:00:47]} 23. Qxf3 {[%emt 0:01:30]} Re5 {[%emt 0:04:26]} 24. exd5 {[%emt 0:04:30]} Nxd5 {[%emt 0:00:04]} 25. Rxe5 {[%emt 0:03:30]} Qxe5 {[%emt 0:00:02]} 26. Ne4 {[%emt 0:00:30]} Re8 {[%emt 0:00:01]} 27. Nc5 {[%emt 0:03:30]} Nxc3 {[%emt 0:01:09]} 28. Ra3 {[%emt 0:02:30]} Ne2+ {[%emt 0:00:39]} 29. Kh1 {[%emt 0:02:30]} Qb2 {[%emt 0:00:11]} 30. Bd1 {[%emt 0:16:34]} Nd4 {[%emt 0:05:10]} 31. Qc3 {[%emt 0:02:28]} Qxf2 {[%emt 0:00:23]} 32. Nxb7 {[%emt 0:02:38]} Re1+ {[%emt 0:00:30]} 33. Kh2 {[%emt 0:00:00]} Nf5 {[%emt 0:00:34]} 34. h4 {[%emt 0:03:11]} Qg1+ {[%emt 0:00:57]} 35. Kh3 {[%emt 0:00:30]} Qh1+ {[%emt 0:00:00]} 36. Kg4 {[%emt 0:00:09]} Qxg2+ {[%emt 0:00:00]} 37. Kf4 {[%emt 0:00:33]} Re4# {[%emt 0:00:28]} 0-1

[Event "Turkish Cup 2022"]
[Site "Sakarya"]
[Date "2022.03.25"]
[Round "1.4"]
[White "Isik, Alparslan"]
[Black "Bayramiclilar, Yusuf Ruzgar"]
[Result "1-0"]
[ECO "E01"]
[WhiteElo "2328"]
[BlackElo "1514"]
[Annotator "NA"]
[PlyCount "89"]
[EventDate "2022.03.25"]
[EventType "swiss"]
[EventCountry "TUR"]
[SourceTitle "playchess.com"]
[Source "ChessBase"]
[SourceQuality "1"]
[TimeControl "5400+30"]

1. Nf3 {[%emt 0:01:00]} d5 {[%emt 0:01:00]} 2. g3 {[%emt 0:00:30]} c5 {[%emt 0:00:30]} 3. Bg2 {[%emt 0:00:00]} Nc6 {[%emt 0:00:00]} 4. d4 {[%emt 0:00:00]} cxd4 {[%emt 0:00:00]} 5. Nxd4 {[%emt 0:00:00]} e6 {[%emt 0:00:00]} 6. c4 {[%emt 0:04:00]} Qb6 {[%emt 0:06:00]} 7. Nxc6 {[%emt 0:08:30]} bxc6 {[%emt 0:00:30]} 8. O-O {[%emt 0:00:30]} Nf6 {[%emt 0:00:00]} 9. Nc3 {[%emt 0:02:30]} Be7 {[%emt 0:00:00]} 10. cxd5 {[%emt 0:00:30]} cxd5 {[%emt 0:00:00]} 11. e4 {[%emt 0:01:30]} dxe4 {[%emt 0:07:00]} 12. Nxe4 {[%emt 0:03:30]} Nd5 {[%emt 0:00:30]} 13. Nc3 {[%emt 0:01:30]} O-O {[%emt 0:04:30]} 14. Nxd5 {[%emt 0:05:30]} exd5 {[%emt 0:00:30]} 15. Be3 {[%emt 0:00:00]} Qg6 {[%emt 0:03:30]} 16. Bxd5 {[%emt 0:05:00]} Rb8 {[%emt 0:04:30]} 17. b3 {[%emt 0:07:30]} Rd8 {[%emt 0:04:30]} 18. Qf3 {[%emt 0:00:30]} Bh3 {[%emt 0:01:30]} 19. Rfd1 {[%emt 0:03:30]} Bf6 {[%emt 0:00:30] [#]} 20. Be4 $1 {[%emt 0:02:30]} ({Of course not} 20. Bxa7 $6 Bg4 21. Qf4 Bxd1 22. Rxd1 Rb7 $11) 20... Bg4 {[%emt 0:01:30] [#]} 21. Qf4 $1 {[%emt 0:02:30]} Bxd1 {[%emt 0:05:30]} 22. Bxg6 {[%emt 0:01:30]} Bxa1 {[%emt 0:00:30]} (22... hxg6 $142 23. Rc1 (23. Bxa7 Ra8 $16) 23... Rb5) 23. Qxf7+ {[%emt 0:02:30]} ({Don't take} 23. Bxf7+ Kh8 24. Bxa7 Rbc8) 23... Kh8 {[%emt 0:00:00]} 24. Be4 {[%emt 0:00:30]} Bg4 {[%emt 0:05:00]} 25. Kg2 {[%emt 0:01:30]} Bd4 {[%emt 0:04:30]} 26. Bxd4 {[%emt 0:03:30]} Rxd4 {[%emt 0:01:30] [#]} 27. Qxa7 $1 {[%emt 0:00:30]} Rbd8 $18 {[%emt 0:00:30]} 28. Bf3 {[%emt 0:00:30]} (28. Qe7 $142) 28... Bxf3+ {[%emt 0:00:30]} 29. Kxf3 {[%emt 0:00:30]} Rd2 {[%emt 0:00:30]} 30. Kg2 {[%emt 0:00:30]} h6 {[%emt 0:00:30]} 31. a4 {[%emt 0:00:30]} Rb2 {[%emt 0:00:30]} 32. Qb6 {[%emt 0:03:30]} Rd3 {[%emt 0:00:30]} 33. b4 {[%emt 0:00:30]} Rdb3 {[%emt 0:01:30]} 34. b5 {[%emt 0:00:30]} Ra3 {[%emt 0:00:30]} 35. Qd8+ {[%emt 0:02:30]} Kh7 {[%emt 0:00:30]} 36. Qd4 {[%emt 0:00:00]} Rab3 {[%emt 0:01:30]} 37. a5 {[%emt 0:02:00]} Rxb5 {[%emt 0:00:30]} 38. a6 {[%emt 0:00:00]} Ra5 {[%emt 0:01:30]} 39. Qxb2 {[%emt 0:00:00]} Rxa6 {[%emt 0:00:30]} 40. Qc2+ {[%emt 0:00:30]} Rg6 {[%emt 0:00:30]} 41. Qf5 {[%emt 0:00:30]} h5 {[%emt 0:00:30]} 42. Qxh5+ {[%emt 0:00:30]} Rh6 {[%emt 0:00:30]} 43. Qf5+ {[%emt 0:00:30]} g6 {[%emt 0:00:30]} 44. Qf7+ {[%emt 0:00:30]} Kh8 {[%emt 0:00:30]} 45. h4 {[%emt 0:00:00]} 1-0

[Event "Turkish Cup 2022"]
[Site "Sakarya"]
[Date "2022.03.25"]
[Round "1.6"]
[White "Samani, Yamac"]
[Black "Gani, Refik Efe"]
[Result "1-0"]
[ECO "A00"]
[WhiteElo "2257"]
[BlackElo "1370"]
[Annotator "NA"]
[PlyCount "59"]
[EventDate "2022.03.25"]
[EventType "swiss"]
[EventCountry "TUR"]
[SourceTitle "playchess.com"]
[Source "ChessBase"]
[SourceQuality "1"]
[TimeControl "5400+30"]

1. Nc3 {[%emt 0:01:00]} d5 {[%emt 0:01:00]} 2. e4 {[%emt 0:02:30]} d4 {[%emt 0:00:30]} 3. Nce2 {[%emt 0:00:30]} e5 {[%emt 0:00:30]} 4. Nf3 {[%emt 0:00:30]} Nc6 {[%emt 0:01:30]} 5. Ng3 {[%emt 0:00:30]} Nf6 {[%emt 0:00:30]} 6. Bb5 {[%emt 0:01:30]} Bd6 {[%emt 0:02:30]} 7. Bxc6+ {[%emt 0:02:30]} bxc6 {[%emt 0:00:30]} 8. d3 {[%emt 0:00:30]} Be6 {[%emt 0:04:30]} 9. O-O {[%emt 0:00:30]} h6 {[%emt 0:03:30]} 10. Qe2 {[%emt 0:02:30]} O-O {[%emt 0:03:30]} 11. Nh4 {[%emt 0:04:30]} Re8 {[%emt 0:09:30]} 12. Nhf5 {[%emt 0:02:30]} Bxf5 {[%emt 0:02:30]} 13. Nxf5 {[%emt 0:00:00]} Kh7 {[%emt 0:02:30]} 14. Kh1 {[%emt 0:06:00]} Bf8 {[%emt 0:03:30]} 15. f4 {[%emt 0:03:30]} g6 {[%emt 0:03:30]} (15... Nd7 $14) 16. Ng3 {[%emt 0:09:30]} Rb8 {[%emt 0:04:30]} 17. Qf3 {[%emt 0:03:30]} Bg7 {[%emt 0:04:30]} 18. b3 {[%emt 0:01:30]} Nd7 {[%emt 0:03:30]} 19. f5 {[%emt 0:01:30]} Qe7 {[%emt 0:04:30]} 20. a4 {[%emt 0:03:30]} g5 $18 {[%emt 0:07:30]} (20... Nf6 $16) 21. f6 {[%emt 0:09:30]} Nxf6 {[%emt 0:06:30]} 22. Nf5 {[%emt 0:01:30]} Qe6 {[%emt 0:00:30]} 23. Bd2 {[%emt 0:13:30]} Ng8 {[%emt 0:04:30]} 24. h4 {[%emt 0:01:30]} f6 {[%emt 0:04:30]} 25. Qh5 {[%emt 0:03:30]} Ne7 {[%emt 0:02:58]} 26. hxg5 {[%emt 0:06:03]} fxg5 {[%emt 0:00:22]} 27. Bxg5 {[%emt 0:05:46]} Qg6 {[%emt 0:02:50]} 28. Nxg7 {[%emt 0:01:50]} Kxg7 {[%emt 0:00:36]} 29. Bxh6+ {[%emt 0:01:13]} Kh7 {[%emt 0:00:40]} 30. Rf7+ {[%emt 0:00:59]} 1-0

[Event "Turkish Cup 2022"]
[Site "Sakarya"]
[Date "2022.03.25"]
[Round "1.7"]
[White "Kalender, Yigit"]
[Black "Huseyinoglu, Alihan"]
[Result "0-1"]
[ECO "A35"]
[WhiteElo "1384"]
[BlackElo "2312"]
[Annotator "NA"]
[PlyCount "132"]
[EventDate "2022.03.25"]
[EventType "swiss"]
[EventCountry "TUR"]
[SourceTitle "playchess.com"]
[Source "ChessBase"]
[SourceQuality "1"]
[TimeControl "5400+30"]

1. d4 {[%emt 0:01:00]} g6 {[%emt 0:01:00]} 2. c4 {[%emt 0:00:30]} Bg7 {[%emt 0:00:30]} 3. Nc3 {[%emt 0:00:30]} c5 {[%emt 0:00:30]} 4. Nf3 {[%emt 0:00:30]} cxd4 {[%emt 0:01:30]} 5. Nxd4 {[%emt 0:00:30]} Nc6 {[%emt 0:00:30]} 6. e3 {[%emt 0:05:30]} Nf6 {[%emt 0:02:30]} 7. Be2 {[%emt 0:00:30]} O-O {[%emt 0:00:30]} 8. O-O {[%emt 0:00:30]} Nxd4 {[%emt 0:10:30]} 9. exd4 {[%emt 0:00:30]} d5 {[%emt 0:00:30]} 10. Bf4 {[%emt 0:09:30]} dxc4 {[%emt 0:05:30]} 11. Bxc4 {[%emt 0:00:30]} b6 {[%emt 0:02:30]} 12. Qa4 {[%emt 0:07:30]} a6 {[%emt 0:07:30]} 13. Rfd1 {[%emt 0:06:30]} Bb7 {[%emt 0:13:30]} 14. Bf1 {[%emt 0:00:30]} Nd5 {[%emt 0:05:30]} 15. Nxd5 {[%emt 0:07:30]} Qxd5 {[%emt 0:05:30]} 16. Qb4 $11 {[%emt 0:07:30]} Qe4 {[%emt 0:04:30]} 17. Be3 {[%emt 0:06:30]} b5 {[%emt 0:03:30]} 18. a4 {[%emt 0:03:30]} bxa4 {[%emt 0:03:30]} 19. Rxa4 {[%emt 0:02:30]} Rab8 {[%emt 0:07:30]} 20. Qa3 {[%emt 0:01:30]} Bd5 {[%emt 0:02:30]} 21. Rxa6 {[%emt 0:07:30]} Rb3 {[%emt 0:01:30]} 22. Qc5 {[%emt 0:06:30]} Rxb2 {[%emt 0:01:18]} 23. Rb6 {[%emt 0:02:30]} Rc2 {[%emt 0:03:27]} 24. Qb4 {[%emt 0:01:30]} h5 {[%emt 0:01:01]} 25. Rb8 {[%emt 0:01:37]} Rxb8 {[%emt 0:02:52]} 26. Qxb8+ {[%emt 0:00:30]} Kh7 {[%emt 0:00:00]} 27. Qf4 {[%emt 0:00:23]} Qxf4 {[%emt 0:04:04]} 28. Bxf4 {[%emt 0:00:30]} Bb3 {[%emt 0:02:19]} 29. Rb1 {[%emt 0:00:48]} Ba2 {[%emt 0:00:43]} 30. Rd1 {[%emt 0:00:16]} Rb2 {[%emt 0:00:42]} 31. Be3 {[%emt 0:00:50]} Bf6 {[%emt 0:02:06]} 32. h3 {[%emt 0:01:06]} h4 {[%emt 0:00:43]} 33. Kh1 {[%emt 0:02:37]} Kg7 {[%emt 0:00:24]} 34. Kg1 {[%emt 0:01:58]} e6 {[%emt 0:01:45]} 35. Bd3 {[%emt 0:00:58]} Bd5 {[%emt 0:00:57]} 36. Bf1 {[%emt 0:00:41]} Ra2 {[%emt 0:00:54]} 37. Rc1 {[%emt 0:00:26]} Ra4 {[%emt 0:00:12]} 38. Rd1 {[%emt 0:00:14]} Bb3 {[%emt 0:00:30]} 39. Rb1 {[%emt 0:00:19]} Bc2 {[%emt 0:00:36]} 40. Rb2 {[%emt 0:01:00]} Be4 {[%emt 0:00:11]} 41. Rd2 {[%emt 0:01:42]} Ra1 {[%emt 0:01:32]} 42. f3 {[%emt 0:01:12]} Bd5 {[%emt 0:00:02]} 43. Kf2 {[%emt 0:00:31]} Be7 {[%emt 0:00:12]} 44. Bd3 {[%emt 0:00:24]} Bd6 {[%emt 0:01:15]} 45. Ke2 {[%emt 0:02:40]} Bg3 {[%emt 0:02:25]} 46. Bf2 {[%emt 0:00:06]} Kf6 {[%emt 0:00:53]} 47. Bxg3 {[%emt 0:00:45]} hxg3 {[%emt 0:00:02]} 48. Ke3 {[%emt 0:01:08]} g5 {[%emt 0:01:28]} 49. Be4 {[%emt 0:00:45]} Bc4 {[%emt 0:00:31]} 50. Bd3 {[%emt 0:00:29]} Ra3 {[%emt 0:00:45]} 51. Ke2 {[%emt 0:01:07]} Bd5 {[%emt 0:00:38]} 52. Be4 {[%emt 0:00:37]} Bc4+ {[%emt 0:00:30]} 53. Bd3 {[%emt 0:00:00]} Bb3 {[%emt 0:00:31]} 54. Bc2 {[%emt 0:01:04]} Ba2 {[%emt 0:00:48]} 55. Be4 {[%emt 0:00:26]} Ke7 {[%emt 0:00:01]} 56. d5 {[%emt 0:01:51]} Bc4+ {[%emt 0:00:17]} 57. Kd1 {[%emt 0:01:25]} Ra1+ {[%emt 0:00:36]} 58. Kc2 {[%emt 0:00:03]} exd5 {[%emt 0:00:30]} 59. Bf5 {[%emt 0:01:38]} Ra2+ {[%emt 0:00:30]} 60. Kc3 {[%emt 0:00:00]} Rxd2 {[%emt 0:00:13]} 61. Kxd2 {[%emt 0:00:05]} Bf1 {[%emt 0:00:00]} 62. Ke3 {[%emt 0:01:17]} Kf6 {[%emt 0:01:20]} 63. Bg4 {[%emt 0:00:51]} Ke5 {[%emt 0:00:00]} 64. Kd2 {[%emt 0:01:37]} Bxg2 {[%emt 0:00:00]} 65. Ke3 {[%emt 0:00:58]} d4+ {[%emt 0:00:00]} 66. Ke2 {[%emt 0:00:30]} Kf4 {[%emt 0:00:00]} 0-1

[Event "Turkish Cup 2022"]
[Site "Sakarya"]
[Date "2022.03.25"]
[Round "1.8"]
[White "Eren, Ataberk"]
[Black "Togrul, Ayberk"]
[Result "1-0"]
[ECO "A24"]
[WhiteElo "2306"]
[BlackElo "1526"]
[Annotator "NA"]
[PlyCount "98"]
[EventDate "2022.03.25"]
[EventType "swiss"]
[EventCountry "TUR"]
[SourceTitle "playchess.com"]
[Source "ChessBase"]
[SourceQuality "1"]
[TimeControl "5400+30"]

1. Nf3 {[%emt 0:01:00]} Nf6 {[%emt 0:01:00]} 2. g3 {[%emt 0:00:00]} d6 {[%emt 0:00:30]} 3. Bg2 {[%emt 0:00:00]} g6 {[%emt 0:00:30]} 4. O-O {[%emt 0:00:00]} Bg7 {[%emt 0:00:00]} 5. c4 {[%emt 0:00:00]} O-O {[%emt 0:00:00]} 6. Nc3 {[%emt 0:00:30]} Nbd7 {[%emt 0:01:30]} 7. d3 {[%emt 0:00:00]} e5 {[%emt 0:01:30]} 8. Rb1 {[%emt 0:00:00]} Rb8 {[%emt 0:01:30]} 9. b4 {[%emt 0:00:30]} b6 {[%emt 0:04:30]} 10. Ne1 {[%emt 0:00:30]} Bb7 {[%emt 0:03:30]} 11. a4 {[%emt 0:00:00]} e4 {[%emt 0:01:30]} 12. dxe4 {[%emt 0:03:00]} Re8 {[%emt 0:05:30]} 13. f3 {[%emt 0:00:30]} Ne5 {[%emt 0:04:30]} 14. Qb3 {[%emt 0:00:30]} Nc6 {[%emt 0:05:30]} 15. Nc2 {[%emt 0:00:00]} Nd7 {[%emt 0:06:30]} 16. Be3 {[%emt 0:03:00]} a5 {[%emt 0:03:30]} 17. b5 {[%emt 0:00:30]} Ne7 {[%emt 0:00:30]} 18. Rbd1 {[%emt 0:00:30]} Nf8 {[%emt 0:05:30]} 19. c5 {[%emt 0:02:30]} bxc5 {[%emt 0:04:30] [#]} 20. Bxc5 $1 {[%emt 0:00:30]} Qc8 {[%emt 0:00:30]} 21. Ba7 {[%emt 0:00:30]} Ra8 {[%emt 0:00:30]} 22. Bf2 {[%emt 0:00:00]} Rd8 {[%emt 0:00:30]} 23. Ne3 {[%emt 0:00:00]} c6 {[%emt 0:01:30]} 24. Nc4 {[%emt 0:00:30]} Qe6 {[%emt 0:03:30]} 25. Rc1 {[%emt 0:00:30]} (25. f4 $18 Bxc3 26. Qxc3 cxb5 27. axb5) 25... Nd7 {[%emt 0:01:30]} (25... d5 $16) 26. Nd2 {[%emt 0:02:30]} Qxb3 {[%emt 0:02:30]} 27. Nxb3 {[%emt 0:00:00]} c5 {[%emt 0:00:30]} 28. Rfd1 {[%emt 0:00:00]} Nb6 {[%emt 0:00:00]} 29. Be1 {[%emt 0:02:30]} Bxc3 {[%emt 0:02:00]} (29... Kf8 $16 30. Bh3 Be5) 30. Bxc3 {[%emt 0:04:30]} ({Don't do} 30. Rxc3 $6 c4 $18) 30... Nxa4 {[%emt 0:00:30]} 31. Bxa5 {[%emt 0:00:30]} Rd7 {[%emt 0:01:30]} 32. Bh3 {[%emt 0:03:30]} f5 {[%emt 0:00:30]} 33. Bd2 {[%emt 0:01:30]} Nb2 {[%emt 0:00:30]} 34. Rf1 {[%emt 0:00:30]} Rc7 {[%emt 0:03:30]} (34... Bc8 $142 35. Bf4 Rd8) 35. Bf4 {[%emt 0:00:30]} Rd7 {[%emt 0:03:30]} 36. Rc2 {[%emt 0:01:30]} Na4 {[%emt 0:01:30]} 37. Rd1 {[%emt 0:00:30]} c4 {[%emt 0:03:30]} 38. Nd4 {[%emt 0:00:30]} d5 $18 {[%emt 0:01:30]} 39. exf5 {[%emt 0:01:30]} gxf5 {[%emt 0:00:30]} 40. Nxf5 {[%emt 0:00:30]} Nxf5 {[%emt 0:01:30]} 41. Bxf5 {[%emt 0:00:30]} Re7 {[%emt 0:00:00]} 42. Bd6 {[%emt 0:00:30]} Ree8 {[%emt 0:01:00]} 43. Bd7 {[%emt 0:00:00]} Re3 {[%emt 0:00:30]} 44. Kf2 {[%emt 0:00:00]} Nb6 {[%emt 0:03:30]} 45. Kxe3 {[%emt 0:02:30]} Nxd7 {[%emt 0:00:00]} 46. Kf2 {[%emt 0:00:30]} Kf7 {[%emt 0:01:00]} 47. Bf4 {[%emt 0:01:30]} Ke6 {[%emt 0:00:30]} 48. e4 {[%emt 0:00:30]} dxe4 {[%emt 0:02:30]} 49. Rxc4 {[%emt 0:01:30]} Ra2+ {[%emt 0:04:10]} 1-0

[Event "Turkish Cup 2022"]
[Site "Sakarya"]
[Date "2022.03.25"]
[Round "1.9"]
[White "Ocakoglu, Orhan Kemal"]
[Black "Ozsakallioglu, Okan"]
[Result "0-1"]
[ECO "A45"]
[WhiteElo "1482"]
[BlackElo "2270"]
[Annotator "NA"]
[PlyCount "114"]
[EventDate "2022.03.25"]
[EventType "swiss"]
[EventCountry "TUR"]
[SourceTitle "playchess.com"]
[Source "ChessBase"]
[SourceQuality "1"]
[TimeControl "5400+30"]

1. d4 {[%emt 0:01:00]} Nf6 {[%emt 0:01:00]} 2. Bf4 {[%emt 0:00:00]} g6 {[%emt 0:04:30]} 3. Nc3 {[%emt 0:00:00]} d5 {[%emt 0:00:30]} 4. e3 {[%emt 0:00:30]} Bg7 {[%emt 0:00:30]} 5. Nb5 {[%emt 0:00:30]} Na6 {[%emt 0:00:30]} 6. h3 {[%emt 0:00:30]} c6 {[%emt 0:02:30]} 7. Nc3 {[%emt 0:03:30]} Nc7 {[%emt 0:01:30]} 8. Nf3 {[%emt 0:00:00]} O-O {[%emt 0:00:00]} 9. Bd3 {[%emt 0:00:00]} Ne6 {[%emt 0:07:00]} 10. Be5 {[%emt 0:00:30]} c5 {[%emt 0:00:00]} 11. dxc5 {[%emt 0:16:30]} Nxc5 {[%emt 0:01:00]} 12. O-O {[%emt 0:02:30]} a6 {[%emt 0:11:30]} 13. Ne2 {[%emt 0:11:30]} b6 {[%emt 0:13:30]} 14. Ned4 {[%emt 0:09:30]} Bb7 {[%emt 0:00:30]} 15. c3 $15 {[%emt 0:03:30]} Re8 {[%emt 0:01:30]} 16. a4 {[%emt 0:20:30]} Rc8 {[%emt 0:12:30]} 17. Qe2 {[%emt 0:01:30]} e6 {[%emt 0:01:30]} 18. Rfd1 {[%emt 0:06:30]} Bf8 {[%emt 0:00:30]} 19. Bc2 {[%emt 0:05:47]} Nfd7 {[%emt 0:06:30]} 20. Bg3 {[%emt 0:01:11]} Bg7 {[%emt 0:05:30]} 21. Nd2 {[%emt 0:04:50]} e5 {[%emt 0:01:30]} 22. N4b3 {[%emt 0:00:06]} Ne6 {[%emt 0:06:30]} 23. Bd3 {[%emt 0:06:36]} Ndc5 {[%emt 0:02:51]} 24. Bc2 {[%emt 0:01:09]} f5 {[%emt 0:05:43]} 25. Nxc5 {[%emt 0:00:41]} bxc5 {[%emt 0:01:05]} 26. a5 {[%emt 0:01:37]} Qf6 {[%emt 0:02:42]} 27. Nf3 {[%emt 0:00:56]} e4 {[%emt 0:00:53]} 28. Nd2 {[%emt 0:00:30]} d4 {[%emt 0:00:18]} 29. cxd4 {[%emt 0:01:30]} cxd4 {[%emt 0:00:30]} 30. Bb3 {[%emt 0:00:30]} d3 {[%emt 0:00:00]} 31. Qe1 {[%emt 0:00:00]} Kh8 {[%emt 0:00:48]} 32. Nc4 {[%emt 0:00:00]} Nc5 {[%emt 0:00:00]} 33. Qb4 {[%emt 0:00:50]} Nxb3 {[%emt 0:00:00]} 34. Be5 {[%emt 0:01:02]} Rxc4 {[%emt 0:02:45]} 35. Qxb3 {[%emt 0:00:30]} Qf7 {[%emt 0:00:46]} 36. Rac1 {[%emt 0:00:49]} Bd5 {[%emt 0:00:15]} 37. Bxg7+ {[%emt 0:00:18]} Kxg7 {[%emt 0:00:05]} 38. Rxc4 {[%emt 0:00:31]} Bxc4 {[%emt 0:00:30]} 39. Qb6 {[%emt 0:00:00]} Kg8 {[%emt 0:00:00]} 40. Rc1 {[%emt 0:00:46]} d2 {[%emt 0:00:10]} 41. Rd1 {[%emt 0:00:21]} Qd5 {[%emt 0:00:30]} 42. Qd4 {[%emt 0:00:30]} Qxd4 {[%emt 0:00:30]} 43. exd4 {[%emt 0:00:00]} Rd8 {[%emt 0:00:00]} 44. Rxd2 {[%emt 0:00:22]} Bd3 {[%emt 0:00:14]} 45. f3 {[%emt 0:00:30]} Rxd4 {[%emt 0:00:00]} 46. fxe4 {[%emt 0:00:00]} fxe4 {[%emt 0:00:00]} 47. Kf2 {[%emt 0:00:20]} Ra4 {[%emt 0:00:00]} 48. Ke3 {[%emt 0:00:36]} Rxa5 {[%emt 0:00:00]} 49. g4 {[%emt 0:00:31]} Ra1 {[%emt 0:00:00]} 50. Kf4 {[%emt 0:01:04]} Rf1+ {[%emt 0:00:00]} 51. Kg5 {[%emt 0:00:30]} Kg7 {[%emt 0:00:00]} 52. Kh4 {[%emt 0:00:25]} e3 {[%emt 0:00:11]} 53. Rxd3 {[%emt 0:00:30]} e2 {[%emt 0:00:00]} 54. Kg5 {[%emt 0:01:05]} h6+ {[%emt 0:00:08]} 55. Kh4 {[%emt 0:00:30]} e1=Q+ {[%emt 0:00:00]} 56. Rg3 {[%emt 0:00:00]} g5+ {[%emt 0:00:12]} 57. Kh5 {[%emt 0:00:23]} Qe8# {[%emt 0:00:08]} 0-1

[Event "Turkish Cup 2022"]
[Site "Sakarya"]
[Date "2022.03.25"]
[Round "1.11"]
[White "Gulbay, Omer Deniz"]
[Black "Yaran, Siar"]
[Result "0-1"]
[ECO "C54"]
[WhiteElo "1499"]
[BlackElo "2272"]
[Annotator "NA"]
[PlyCount "52"]
[EventDate "2022.03.25"]
[EventType "swiss"]
[EventCountry "TUR"]
[SourceTitle "playchess.com"]
[Source "ChessBase"]
[SourceQuality "1"]
[TimeControl "5400+30"]

1. e4 {[%emt 0:01:00]} e5 {[%emt 0:01:00]} 2. Nf3 {[%emt 0:00:00]} Nc6 {[%emt 0:00:30]} 3. Bc4 {[%emt 0:00:00]} Bc5 {[%emt 0:00:30]} 4. c3 {[%emt 0:02:30]} Nf6 {[%emt 0:00:30]} 5. O-O {[%emt 0:00:30]} Nxe4 {[%emt 0:03:30]} 6. d4 {[%emt 0:06:30]} d5 {[%emt 0:00:30]} 7. Bb3 {[%emt 0:16:30]} exd4 {[%emt 0:04:30]} 8. cxd4 {[%emt 0:06:30]} Be7 {[%emt 0:13:30]} 9. Nc3 {[%emt 0:01:30]} Nxc3 {[%emt 0:00:30]} 10. bxc3 {[%emt 0:00:30]} O-O {[%emt 0:00:30]} 11. Qd3 {[%emt 0:01:30]} Be6 {[%emt 0:02:30]} 12. Rb1 {[%emt 0:01:30]} g6 {[%emt 0:01:30]} 13. Bh6 {[%emt 0:05:30]} Re8 $1 {[%emt 0:00:30]} 14. Ba4 {[%emt 0:06:30]} Bf5 {[%emt 0:06:30]} 15. Qd2 {[%emt 0:03:30]} Bxb1 {[%emt 0:00:30]} 16. Rxb1 {[%emt 0:00:00]} Rb8 $19 {[%emt 0:03:30]} 17. Qf4 {[%emt 0:11:00]} Bd6 {[%emt 0:05:30]} 18. Ne5 {[%emt 0:10:30]} Bxe5 {[%emt 0:11:30]} 19. dxe5 {[%emt 0:01:30]} Rxe5 {[%emt 0:01:30]} 20. h3 {[%emt 0:04:18]} Re4 {[%emt 0:00:30]} 21. Qf3 {[%emt 0:02:38]} Rxa4 {[%emt 0:00:30]} 22. Rd1 {[%emt 0:00:44]} Qh4 {[%emt 0:01:30]} 23. Be3 {[%emt 0:01:14]} Qe4 {[%emt 0:00:30]} 24. Qf6 {[%emt 0:00:40]} Qf5 {[%emt 0:01:30]} 25. Qg7+ {[%emt 0:01:33]} Kxg7 {[%emt 0:00:30]} 26. Bh6+ {[%emt 0:00:30]} Kxh6 {[%emt 0:00:00]} 0-1

[Event "Turkish Cup 2022"]
[Site "Sakarya"]
[Date "2022.03.25"]
[Round "1.12"]
[White "Danaci, Ege"]
[Black "Altin, Halis"]
[Result "1-0"]
[ECO "D35"]
[WhiteElo "2264"]
[BlackElo "1536"]
[Annotator "ChessBase"]
[PlyCount "39"]
[EventDate "2022.03.25"]
[EventType "swiss"]
[EventCountry "TUR"]
[SourceTitle "playchess.com"]
[Source "ChessBase"]
[SourceQuality "1"]
[TimeControl "5400+30"]

1. c4 {[%emt 0:01:00]} Nf6 {[%emt 0:01:00]} 2. Nc3 {[%emt 0:00:30]} e6 {[%emt 0:00:30]} 3. g3 {[%emt 0:00:30]} d5 {[%emt 0:02:30]} 4. cxd5 {[%emt 0:01:30]} exd5 {[%emt 0:00:30]} 5. d4 {[%emt 0:00:30]} c6 {[%emt 0:00:30]} 6. Nf3 {[%emt 0:02:30]} Bd6 {[%emt 0:01:30]} 7. Bg2 {[%emt 0:00:30]} O-O {[%emt 0:00:30]} 8. O-O {[%emt 0:00:30]} Bg4 {[%emt 0:01:30]} 9. Ne5 {[%emt 0:02:30]} Re8 {[%emt 0:05:30]} 10. Nxg4 {[%emt 0:00:30]} Nxg4 {[%emt 0:00:30]} 11. e4 {[%emt 0:00:30]} Nh6 {[%emt 0:06:30]} 12. Bxh6 {[%emt 0:00:30]} gxh6 {[%emt 0:00:30]} 13. exd5 {[%emt 0:00:30]} c5 {[%emt 0:03:30]} 14. dxc5 {[%emt 0:03:30]} Bxc5 {[%emt 0:00:30]} 15. Ne4 {[%emt 0:03:30]} Bb6 {[%emt 0:03:30]} 16. Qg4+ {[%emt 0:00:30]} Kh8 {[%emt 0:01:30]} 17. Rae1 {[%emt 0:00:00]} Re5 {[%emt 0:06:30]} 18. Qf4 {[%emt 0:02:00]} Qe7 {[%emt 0:01:30]} 19. d6 {[%emt 0:00:30]} Qe6 {[%emt 0:02:30]} 20. Nc5 {[%emt 0:00:30]} 1-0